bitfinex/quotes_SOLUSD_20260308
["timestamp","ask_amount","ask_price","bid_price","bid_amount"]
[1773009414014,42.8926825,81.599,81.527,0.28432314]
[1773009414337,42.8926825,81.599,81.528,0.50266722]
[1773009414836,42.88742662,81.609,81.533,0.50266722]
[1773009415926,4.61575217,81.6,81.533,0.50266722]
[1773009416839,42.8926825,81.599,81.536,0.50266722]
[1773009417024,42.8926825,81.599,81.538,0.50266722]
[1773009417421,4.61575217,81.6,81.538,0.50266722]
[1773009417422,0.1,81.62,81.542,0.50266722]
[1773009417623,0.1,81.62,81.561,5.10909883]
[1773009417827,0.1,81.62,81.569,0.50266722]
[1773009418132,4.61575217,81.61,81.569,0.50266722]
[1773009418334,42.88217203,81.619,81.569,0.50266722]
[1773009418535,4.61575217,81.61,81.569,0.50266722]
[1773009418721,4.61575217,81.59,81.562,11.53423773]
[1773009418922,4.61575217,81.6,81.563,12.26046123]
[1773009419136,4.61575217,81.59,81.562,11.53423773]
[1773009419831,3.69383402,81.629,81.562,11.53423773]
[1773009419832,0.19466557,81.712,81.566,0.4544147]
[1773009420030,0.19466557,81.712,81.565,3.69383402]
[1773009420031,0.19466557,81.735,81.603,0.4544147]
[1773009420341,0.19466557,81.735,81.596,4.61575217]
[1773009420342,6.39208459,81.709,81.613,0.14216157]
[1773009420547,12.42887731,81.738,81.645,0.4544147]
[1773009420838,12.42887731,81.738,81.644,3.69383402]
[1773009420839,0.19466557,81.738,81.66,0.4544147]
[1773009421043,0.19466557,81.736,81.663,0.4544147]
[1773009421336,0.19466557,81.736,81.666,0.4544147]
[1773009421744,0.19466557,81.737,81.666,0.4544147]
[1773009421953,0.19466557,81.737,81.671,0.4544147]
[1773009422248,7.72461891,81.74,81.668,0.28432314]
[1773009422249,7.72461891,81.74,81.684,0.4544147]
[1773009422453,19.95855976,81.74,81.684,0.4544147]
[1773009422820,7.72461891,81.74,81.686,0.28432314]
[1773009423125,7.72461891,81.74,81.687,0.45360368]
[1773009423645,0.19466557,81.768,81.719,0.45360368]
[1773009423851,0.19466557,81.766,81.719,0.45360368]
[1773009424032,0.19466557,81.789,81.719,0.45360368]
[1773009424235,0.19466557,81.797,81.723,0.45360368]
[1773009424440,0.19466557,81.797,81.708,0.28432314]
[1773009424441,12.4200528,81.797,81.733,0.45360368]
[1773009424655,12.4200528,81.797,81.734,0.45360368]
[1773009425042,12.4200528,81.797,81.737,0.45360368]
[1773009425432,12.4200528,81.797,81.71,12.69200779]
[1773009425433,0.19466557,81.769,81.71,12.69200779]
[1773009425759,42.78885532,81.797,81.541,73.58213782]
[1773009425760,0.19466557,81.749,81.703,12.23938685]
[1773009425939,0.19466557,81.749,81.631,55.12]
[1773009425940,12.31687432,81.71,81.678,12.24306354]
[1773009426138,0.19466557,81.719,81.684,12.24226546]
[1773009426435,0.19466557,81.719,81.68,12.24285368]
[1773009426760,0.19466557,81.747,81.688,0.47858748]
[1773009426959,12.51153989,81.73,81.689,0.47858748]
[1773009427262,12.31687432,81.71,81.678,0.47858748]
[1773009427659,12.31687432,81.71,81.679,12.24291361]
[1773009427861,12.23462709,81.736,81.689,0.47858748]
[1773009428038,0.19466557,81.745,81.69,0.47858748]
[1773009428239,30.57741057,81.76,81.689,0.28432314]
[1773009428240,12.31687432,81.76,81.693,0.47858748]
[1773009428442,12.23006317,81.766,81.693,0.47858748]
[1773009428960,12.31687432,81.76,81.693,0.47858748]
[1773009429456,12.42472874,81.766,81.696,0.47858748]
[1773009429661,12.31687432,81.76,81.696,0.47858748]
[1773009430548,3.69383402,81.789,81.695,0.28432314]
[1773009430549,0.19466557,81.811,81.703,0.47858748]
[1773009430744,0.19466557,81.809,81.731,4.82477569]
[1773009430937,0.19466557,81.809,81.732,0.47858748]
[1773009431338,0.19466557,81.807,81.735,0.47858748]
[1773009431739,0.19466557,81.807,81.734,0.28432314]
[1773009431740,0.19466557,81.807,81.738,0.47858748]
[1773009432556,0.19466557,81.799,81.738,0.47858748]
[1773009432739,0.19466557,81.789,81.738,0.47858748]
[1773009432939,0.19466557,81.769,81.698,4.82477569]
[1773009433149,0.19466557,81.78,81.704,4.82477569]
[1773009433351,165.6,81.839,81.698,1.22402017]
[1773009433352,12.22658303,81.789,81.714,0.47858748]
[1773009433559,0.19466557,81.788,81.717,0.47858748]
[1773009433745,12.31687432,81.78,81.717,0.47858748]
[1773009433944,0.19466557,81.779,81.717,0.47858748]
[1773009434458,12.31687432,81.77,81.717,0.47858748]
[1773009434938,0.19466557,81.759,81.71,12.23840411]
[1773009435135,0.19466557,81.759,81.625,49.00431423]
[1773009435136,0.19466557,81.739,81.692,0.47858748]
[1773009435354,0.28432314,81.772,81.694,0.47858748]
[1773009435355,12.31687432,81.73,81.694,0.47858748]
[1773009435559,12.31687432,81.72,81.683,0.47858748]
[1773009435735,12.51153989,81.72,81.681,12.24269707]
[1773009435942,0.19466557,81.719,81.681,12.24269707]
[1773009436150,12.31687432,81.73,81.688,12.24170012]
[1773009436354,12.31687432,81.73,81.684,0.47858748]
[1773009436558,12.31687432,81.73,81.688,12.24170012]
[1773009436768,0.19466557,81.729,81.688,12.24170012]
[1773009437150,12.23421174,81.738,81.689,0.47858748]
[1773009437347,12.23421174,81.738,81.691,0.47858748]
[1773009437668,61.1471339,81.77,81.691,0.47858748]
[1773009437669,12.23226627,81.751,81.692,0.47858748]
[1773009437857,12.23159208,81.756,81.692,0.47858748]
[1773009438569,12.31687432,81.75,81.692,0.47858748]
[1773009438778,12.23159208,81.756,81.692,0.47858748]
[1773009439155,12.23159208,81.756,81.691,0.28432314]
[1773009439156,12.22828974,81.778,81.702,0.47858748]
[1773009439350,12.22828974,81.778,81.694,0.28432314]
[1773009439351,12.22828974,81.778,81.711,0.47858748]
[1773009439575,12.22828974,81.778,81.712,0.47858748]
[1773009439880,12.2275023,81.783,81.712,0.47858748]
[1773009440559,12.4215227,81.788,81.712,0.47858748]
[1773009440760,48.84729715,81.888,81.721,8.99719719]
[1773009440761,12.22239876,81.817,81.721,8.99719719]
[1773009440963,12.31687432,81.9,81.718,0.28432314]
[1773009440964,0.61099502,81.864,81.738,0.47858748]
[1773009441178,0.19466557,81.899,81.755,0.47858748]
[1773009441477,0.19466557,81.879,81.789,0.47858748]
[1773009441670,0.19466557,81.879,81.782,0.28432314]
[1773009441671,0.19466557,81.889,81.807,0.47858748]
[1773009441868,0.19466557,81.897,81.824,0.47858748]
[1773009442083,48.79182953,81.981,81.823,0.28432314]
[1773009442084,0.19466557,81.954,81.832,0.47858748]
[1773009442258,0.11019702,81.945,81.845,0.47858748]
[1773009442488,0.11019702,81.945,81.869,0.47858748]
[1773009442686,0.11019702,81.945,81.868,3.69383402]
[1773009442687,12.20345601,81.944,81.873,0.47858748]
[1773009442978,0.11019702,81.945,81.883,0.47858748]
[1773009443155,12.20345601,81.944,81.887,0.47858748]
[1773009443478,0.11019702,81.945,81.891,0.47858748]
[1773009443983,0.19466557,81.92,81.884,12.21239802]
[1773009444279,0.11019702,81.945,81.886,0.47858748]
[1773009444459,0.19466557,81.939,81.886,0.47858748]
[1773009445158,0.11019702,81.945,81.886,0.47858748]
[1773009445463,42.91510302,81.928,81.886,0.47858748]
[1773009445660,12.31687432,81.92,81.883,20.83035709]
[1773009445974,12.51153989,81.92,81.883,20.83035709]
[1773009446156,0.19466557,81.919,81.883,20.83035709]
[1773009446366,42.72043745,81.928,81.833,0.5]
[1773009446367,12.31687432,81.89,81.833,0.5]
[1773009446563,12.31687432,81.89,81.834,0.5]
[1773009447182,12.31687432,81.87,81.833,12.22000904]
[1773009447364,12.21612773,81.859,81.821,12.22180124]
[1773009447777,12.21612773,81.859,81.821,12.72180124]
[1773009447982,12.31687432,81.88,81.823,0.5]
[1773009448181,12.31687432,81.86,81.823,0.5]
[1773009449289,3.69383402,81.897,81.823,0.5]
[1773009449496,12.31687432,81.87,81.826,0.5]
[1773009450395,3.69383402,81.897,81.814,0.5]
[1773009450594,3.69383402,81.897,81.723,48.94523055]
[1773009450595,12.31687432,81.84,81.802,0.5]
[1773009450772,12.31687432,81.84,81.723,48.94523055]
[1773009450773,12.31687432,81.84,81.806,0.5]
[1773009451393,3.69383402,81.885,81.808,0.5]
[1773009451394,12.21762025,81.849,81.808,0.5]
[1773009451889,12.31687432,81.86,81.808,0.5]
[1773009452090,12.31687432,81.85,81.808,0.5]
[1773009452282,12.31687432,81.84,81.808,0.5]
[1773009452486,12.31687432,81.84,81.801,12.22467222]
[1773009452794,12.31687432,81.84,81.802,0.5]
[1773009453372,12.22060638,81.829,81.79,0.5]
[1773009453573,12.22060638,81.829,81.791,0.5]
[1773009453983,12.21989323,81.834,81.791,0.5]
[1773009454193,12.31687432,81.84,81.791,0.5]
[1773009454194,12.21911313,81.839,81.791,0.5]
[1773009454695,12.31687432,81.9,81.791,0.5]
[1773009454696,12.31687432,81.85,81.791,0.5]
[1773009455897,42.72408784,81.921,81.796,0.5]
[1773009456191,12.31687432,81.91,81.826,0.5]
[1773009456393,12.20688224,81.921,81.836,0.5]
[1773009456693,12.20345601,81.944,81.843,0.5]
[1773009456899,12.20345601,81.944,81.848,0.5]
[1773009457075,12.20345601,81.944,81.856,0.5]
[1773009457270,12.31687432,81.94,81.859,0.5]
[1773009457780,0.11019702,81.945,81.881,0.5]
[1773009457987,0.11019702,81.945,81.882,0.5]
[1773009458698,12.31687432,81.93,81.882,0.5]
[1773009458999,12.31687432,81.92,81.882,0.5]
[1773009459295,0.11019702,81.945,81.882,0.5]
[1773009459481,12.31687432,81.94,81.882,0.5]
[1773009459799,0.11019702,81.945,81.885,0.5]
[1773009460093,12.31687432,81.94,81.885,0.5]
[1773009460285,0.11019702,81.945,81.885,0.5]
[1773009461791,0.11019702,81.945,81.887,0.5]
[1773009462896,0.11019702,81.945,81.888,0.5]
[1773009463902,0.11019702,81.945,81.896,0.5]
[1773009464097,0.11019702,81.945,81.897,0.5]
[1773009465198,12.31687432,81.94,81.897,0.5]
[1773009465397,12.31687432,81.94,81.892,12.211205]
[1773009465601,0.11019702,81.945,81.892,12.211205]
[1773009465798,12.31687432,81.94,81.892,12.711205]
[1773009466292,42.71470239,81.939,81.892,12.711205]
[1773009466688,12.20345601,81.944,81.893,0.5]
[1773009467405,0.11019702,81.945,81.894,0.5]
[1773009467611,30.48703463,82.003,81.902,5.32477569]
[1773009467793,12.19779951,81.982,81.907,0.5]
[1773009468308,42.6922983,81.982,81.91,0.5]
[1773009468605,42.6922983,81.982,81.908,42.73086877]
[1773009468606,12.19779951,81.982,81.916,0.5]
[1773009468988,42.6922983,81.982,81.916,0.5]
[1773009469200,12.31687432,81.98,81.916,0.5]
[1773009469407,12.31687432,82.0,81.916,0.5]
[1773009469584,12.19703099,81.988,81.916,0.5]
[1773009469783,12.19703099,81.988,81.919,0.5]
[1773009470006,12.19757968,81.984,81.919,0.5]
[1773009470206,12.19639103,81.992,81.923,3.69383402]
[1773009470406,12.19691937,81.988,81.925,0.5]
[1773009470905,12.24264688,82.01,81.928,0.5]
[1773009471116,60.95009441,82.035,81.931,3.69383402]
[1773009471117,1e-08,81.983,81.931,3.69383402]
[1773009471412,12.24264688,82.04,81.964,0.5]
[1773009471595,12.18978866,82.036,81.965,0.5]
[1773009471798,12.29068227,82.03,81.965,0.5]
[1773009471989,42.76733715,82.03,81.965,0.5]
[1773009472190,55.00998403,82.03,81.967,0.5]
[1773009472406,54.50998403,82.03,81.967,0.5]
[1773009472594,42.26733715,82.03,81.967,0.5]
[1773009472797,12.24264688,82.01,81.961,12.2008397]
[1773009473106,12.24264688,82.0,81.961,12.2008397]
[1773009473413,12.24264688,82.0,81.956,12.20153574]
[1773009473588,12.24264688,81.98,81.931,0.5]
[1773009474092,103.22064691,82.03,81.931,0.5]
[1773009474093,12.24264688,82.0,81.931,0.5]
[1773009474309,12.1967581,81.989,81.933,0.5]
[1773009474516,12.1967581,81.989,81.934,0.5]
[1773009474887,12.24264688,81.98,81.934,0.5]
[1773009475093,12.1967581,81.989,81.934,0.5]
[1773009475094,42.68865335,81.989,81.934,0.5]
[1773009475310,12.24264688,81.98,81.934,0.5]
[1773009476348,12.19824589,81.979,81.936,0.5]
[1773009476931,48.75569248,82.042,81.936,0.5]
[1773009476932,12.24264688,81.99,81.936,0.5]
[1773009477137,12.24264688,81.98,81.936,0.5]
[1773009477444,12.24264688,81.97,81.926,12.20613724]
[1773009477616,12.24264688,81.95,81.902,0.5]
[1773009478109,12.24264688,81.96,81.902,0.5]
[1773009478428,12.24264688,81.95,81.904,0.5]
[1773009479057,12.24264688,81.91,81.869,0.5]
[1773009479334,0.28432314,81.958,81.871,0.5]
[1773009479538,12.24264688,81.92,81.871,0.5]
[1773009479831,103.99471491,81.959,81.871,0.5]
[1773009479832,12.24264688,81.91,81.871,0.5]
[1773009480074,12.24264688,81.92,81.871,0.5]
[1773009480210,12.24264688,81.91,81.871,0.5]
[1773009480403,12.24264688,81.91,81.838,11.27947478]
[1773009480404,12.21016129,81.899,81.864,12.21529152]
[1773009481019,12.24264688,81.92,81.865,0.5]
[1773009481220,12.20718026,81.919,81.865,0.5]
[1773009481426,12.24264688,81.91,81.865,0.5]
[1773009482220,42.72513091,81.919,81.865,0.5]
[1773009482404,42.72513091,81.919,81.867,0.5]
[1773009482606,12.24264688,81.91,81.867,0.5]
[1773009483329,12.24264688,81.89,81.85,12.21735502]
[1773009483532,12.24264688,81.88,81.85,12.21735502]
[1773009483917,12.24264688,81.88,81.84,12.21889829]
[1773009484308,12.24264688,81.88,81.835,12.21960602]
[1773009484633,12.24264688,81.88,81.724,31.98725854]
[1773009484634,24.45868756,81.86,81.819,12.72203117]
[1773009484925,0.46332626,81.859,81.784,3.69383402]
[1773009485126,12.2094159,81.904,81.789,0.28432314]
[1773009485326,42.73295565,81.904,81.796,3.69383402]
[1773009485538,12.24264688,81.89,81.801,4.82477569]
[1773009485826,12.70597314,81.88,81.807,0.28432314]
[1773009486028,0.45320867,81.879,81.807,0.28432314]
[1773009486225,0.45320867,81.869,81.807,0.28432314]
[1773009486729,0.45320867,81.859,81.809,0.49962883]
[1773009486927,0.45320867,81.872,81.81,0.37607883]
[1773009487126,0.45320867,81.869,81.81,0.37607883]
[1773009487628,0.45320867,81.859,81.81,0.37607883]
[1773009488411,12.21365126,81.876,81.81,0.37607883]
[1773009488625,12.21388963,81.874,81.812,0.28432314]
[1773009488928,0.45320867,81.869,81.812,0.49962883]
[1773009489929,12.24264688,81.86,81.812,0.49962883]
[1773009490133,0.45320867,81.869,81.812,0.49962883]
[1773009490726,0.45320867,81.859,81.813,42.7804872]
[1773009490924,0.45320867,81.859,81.814,0.49962883]
[1773009491435,0.45320867,81.829,81.78,0.49962883]
[1773009491615,0.45320867,81.829,81.783,0.49962883]
[1773009491816,12.24264688,81.85,81.783,0.49962883]
[1773009492012,12.24264688,81.84,81.783,0.28432314]
[1773009492213,12.24264688,81.84,81.707,48.95526749]
[1773009492214,12.24264688,81.79,81.752,12.73174547]
[1773009492428,12.24264688,81.79,81.708,1.22387036]
[1773009492429,0.22355,81.789,81.742,0.49962883]
[1773009492628,12.22673252,81.788,81.743,12.23346341]
[1773009492814,12.24264688,81.78,81.743,12.73309224]
[1773009493025,43.01711383,81.788,81.743,43.31675077]
[1773009493228,43.01711383,81.788,81.743,12.73309224]
[1773009493934,12.24264688,81.78,81.743,12.73309224]
[1773009494137,12.24264688,81.78,81.743,12.23346341]
[1773009494326,0.22355,81.769,81.72,0.49962883]
[1773009494527,12.24264688,81.76,81.72,0.49962883]
[1773009494836,0.22355,81.779,81.723,0.49962883]
[1773009495219,30.56276392,81.799,81.723,0.49962883]
[1773009495437,0.22355,81.798,81.723,0.49962883]
[1773009495824,12.24264688,81.79,81.723,0.49962883]
[1773009496019,11.74264688,81.79,81.723,0.49962883]
[1773009496222,12.24264688,81.79,81.723,0.49962883]
[1773009497336,12.22538723,81.797,81.725,0.49962883]
[1773009497534,12.24264688,81.79,81.726,0.49962883]
[1773009497735,12.24264688,81.78,81.726,0.49962883]
[1773009498852,0.22355,81.779,81.726,0.49962883]
[1773009499147,0.22355,81.759,81.724,12.23630757]
[1773009499325,0.22355,81.759,81.722,30.59115768]
[1773009499518,12.23121896,81.758,81.716,12.2375055]
[1773009499719,0.22355,81.757,81.716,42.83126926]
[1773009499918,12.24264688,81.75,81.716,12.2375055]
[1773009500130,0.22355,81.749,81.716,12.2375055]
[1773009500330,12.24264688,81.74,81.706,12.23900325]
[1773009500527,12.24264688,81.75,81.707,0.49962883]
[1773009500722,12.23121896,81.758,81.707,0.49962883]
[1773009501138,12.23121896,81.758,81.702,8.72002982]
[1773009501139,0.22355,81.757,81.702,8.72002982]
[1773009501319,0.22355,81.757,81.6,41.81012223]
[1773009501320,12.24264688,81.71,81.645,0.5]
[1773009501522,12.24264688,81.72,81.645,0.5]
[1773009501523,12.24264688,81.68,81.654,6.39005013]
[1773009501718,12.24264688,81.68,81.645,0.5]
[1773009501719,0.28432314,81.719,81.645,0.5]
[1773009501934,12.24264688,81.69,81.645,0.5]
[1773009502151,12.24264688,81.69,81.645,12.74814746]
[1773009502443,12.24264688,81.68,81.645,12.74814746]
[1773009503138,12.24264688,81.68,81.645,12.24814746]
[1773009503343,12.243049,81.679,81.645,12.24814746]
[1773009503524,12.243049,81.679,81.64,0.2]
[1773009503525,12.24264688,81.67,81.64,0.2]
[1773009503725,42.85067152,81.679,81.64,0.2]
[1773009503726,12.24264688,81.66,81.64,0.2]
[1773009503925,12.243049,81.679,81.641,0.5]
[1773009504854,12.243049,81.679,81.641,12.74874756]
[1773009505024,12.24264688,81.7,81.644,0.5]
[1773009505227,12.24264688,81.69,81.644,0.5]
[1773009505550,30.59900614,81.702,81.64,0.2]
[1773009505551,12.24264688,81.68,81.64,0.2]
[1773009505730,12.24264688,81.67,81.64,0.2]
[1773009506042,12.24264688,81.68,81.642,0.5]
[1773009506429,30.59900614,81.702,81.64,0.2]
[1773009506430,12.24264688,81.66,81.64,0.2]
[1773009506626,12.24264688,81.67,81.64,0.2]
[1773009506950,12.24454811,81.669,81.64,0.2]
[1773009507427,24.48568139,81.68,81.642,0.5]
[1773009507632,55.09292918,81.68,81.642,0.5]
[1773009508226,24.48568139,81.68,81.642,0.5]
[1773009508444,55.09292918,81.68,81.642,0.5]
[1773009509144,24.48568139,81.68,81.644,0.5]
[1773009509628,12.24303451,81.68,81.64,0.2]
[1773009509835,24.48568139,81.68,81.641,0.5]
[1773009510069,12.24303451,81.68,81.641,0.5]
[1773009510745,24.48568139,81.68,81.641,0.5]
[1773009511151,12.24264688,81.67,81.64,0.2]
[1773009513247,12.24454811,81.669,81.64,0.2]
[1773009513551,42.84989467,81.68,81.641,0.5]
[1773009513753,12.24264688,81.68,81.642,0.5]
[1773009513941,61.19064942,81.712,81.642,0.5]
[1773009513942,12.24264688,81.7,81.642,0.5]
[1773009514651,4.82477569,81.754,81.642,0.5]
[1773009514652,12.24264688,81.71,81.643,0.5]
[1773009515249,61.17668108,81.731,81.644,42.86904119]
[1773009515452,61.17668108,81.731,81.64,0.2]
[1773009515453,12.24264688,81.65,81.64,1e-08]
[1773009515655,0.28432314,81.692,81.64,1e-08]
[1773009515950,12.24264688,81.65,81.64,1e-08]
[1773009516345,12.24264688,81.65,81.609,0.5]
[1773009516649,12.24264688,81.63,81.599,12.25502431]
[1773009516831,12.24264688,81.64,81.6,0.5]
[1773009517756,12.24904763,81.639,81.602,0.5]
[1773009518565,12.24838801,81.644,81.602,0.5]
[1773009519859,12.24264688,81.65,81.604,0.5]
[1773009519860,12.24754742,81.649,81.604,0.5]
[1773009521540,12.24604758,81.659,81.605,0.5]
[1773009521974,12.24454811,81.669,81.608,0.5]
[1773009523741,12.24214972,81.685,81.611,0.5]
[1773009523962,12.24264688,81.68,81.614,0.5]
[1773009525164,12.24264688,81.67,81.614,0.5]
[1773009526061,12.24454811,81.669,81.617,0.5]
[1773009526952,42.85591839,81.669,81.617,0.5]
[1773009527156,12.24264688,81.65,81.617,0.5]
[1773009528162,12.24264688,81.66,81.619,0.5]
[1773009528368,12.24469804,81.668,81.62,0.5]
[1773009530465,12.34225908,81.66,81.622,0.5]
[1773009531257,12.34225908,81.65,81.612,0.5]
[1773009532870,12.24754742,81.649,81.613,12.75294989]
[1773009533248,12.24754742,81.649,73.327,11.23594616]
[1773009533249,12.34225908,81.64,81.608,12.25362022]
[1773009533450,12.34225908,81.62,81.582,0.5]
[1773009533665,12.34225908,81.61,81.582,0.5]
[1773009534560,0.28432314,81.641,81.575,12.25865767]
[1773009534753,42.86641599,81.649,81.576,0.5]
[1773009534953,12.34225908,81.62,81.578,0.5]
[1773009536351,12.34225908,81.61,81.578,0.5]
[1773009536553,12.34225908,81.62,81.578,0.5]
[1773009536760,12.34225908,81.61,81.578,0.5]
[1773009537072,12.34225908,81.61,81.58,0.5]
[1773009537272,12.25355046,81.609,81.58,0.5]
[1773009538361,12.25234825,81.618,81.58,0.5]
[1773009539156,12.25234825,81.618,81.582,0.5]
[1773009540054,12.34225908,81.62,81.582,0.5]
[1773009540455,12.34225908,81.63,81.582,0.5]
[1773009540853,12.25024806,81.631,81.582,0.5]
[1773009541255,12.24904763,81.639,81.583,42.90109458]
[1773009541473,12.24904763,81.639,81.584,0.5]
[1773009541679,12.24904763,81.639,81.585,0.5]
[1773009542170,12.34225908,81.61,81.574,0.5]
[1773009542373,12.34225908,81.59,81.555,0.5]
[1773009542572,12.34225908,81.58,81.56,12.26077248]
[1773009542774,12.34225908,81.58,81.555,12.26152971]
[1773009542978,3.69383402,81.629,81.534,0.5]
[1773009543274,3.69383402,81.629,81.472,49.09628435]
[1773009543275,12.25655419,81.589,81.537,12.26437077]
[1773009543476,12.34225908,81.58,81.538,0.5]
[1773009543775,12.25655419,81.589,81.538,0.5]
[1773009543964,12.25655419,81.589,81.539,0.5]
[1773009544467,12.34225908,81.58,81.539,0.5]
[1773009544659,12.34225908,81.57,81.539,0.5]
[1773009544973,12.34225908,81.57,81.51,0.2]
[1773009544974,12.25655419,81.589,81.534,0.5]
[1773009545160,12.25589534,81.594,81.535,0.5]
[1773009545676,12.34225908,81.59,81.538,0.5]
[1773009546179,12.25505214,81.599,81.538,0.5]
[1773009547369,12.34225908,81.59,81.538,0.5]
[1773009547571,42.8926825,81.599,81.541,0.5]
[1773009548073,12.25505214,81.599,81.541,0.5]
[1773009548273,12.34225908,81.62,81.544,0.5]
[1773009548860,12.25099845,81.626,81.544,0.5]
[1773009548861,12.34225908,81.61,81.544,0.5]
[1773009549581,12.19,100.0,81.539,104.2445946]
[1773009549582,12.24754742,81.649,81.559,0.5]
[1773009549780,12.24754742,81.649,81.569,0.5]
[1773009549964,12.24754742,81.649,81.573,0.5]
[1773009550472,12.24754742,81.649,81.582,0.5]
[1773009550982,12.24754742,81.649,81.583,0.5]
[1773009551682,12.24754742,81.649,81.586,0.5]
[1773009552880,12.34225908,81.64,81.586,0.5]
[1773009553384,12.24754742,81.649,81.586,0.5]
[1773009553968,12.24754742,81.649,81.588,0.28432314]
[1773009554170,12.24754742,81.649,81.589,0.5]
[1773009556269,12.34225908,81.67,81.6,0.5]
[1773009556589,42.84699948,81.686,81.6,0.5]
[1773009556590,12.34225908,81.66,81.6,0.5]
[1773009559081,12.34225908,81.66,81.572,1.22591085]
[1773009559082,12.34225908,81.64,81.596,12.25535985]
[1773009559387,12.34225908,81.62,81.592,12.2560869]
[1773009559795,12.34225908,81.63,81.592,12.2560869]
[1773009560175,12.34225908,81.62,81.592,12.2560869]
[1773009560992,12.25204915,81.619,81.585,0.5]
[1773009561494,12.25084837,81.627,81.585,0.5]
[1773009561893,12.34225908,81.63,81.585,0.5]
[1773009562092,12.34225908,81.63,81.586,0.5]
[1773009563311,12.25027677,81.631,81.588,0.5]
[1773009563600,42.86799108,81.646,81.588,0.5]
[1773009563980,12.24668224,81.655,81.589,0.5]
[1773009564291,12.24604758,81.659,81.592,0.5]
[1773009564813,12.34225908,81.64,81.592,0.5]
[1773009565175,12.34225908,81.65,81.592,0.5]
[1773009565705,0.28432314,81.671,81.594,0.5]
[1773009565706,12.34225908,81.64,81.594,0.5]
[1773009565874,11.84225908,81.64,81.594,0.5]
[1773009566580,12.34225908,81.63,81.594,0.5]
[1773009568995,12.34225908,81.64,81.596,0.5]
[1773009570075,42.86116655,81.659,81.597,0.5]
[1773009570281,12.24546813,81.663,81.597,0.5]
[1773009570581,42.85908751,81.663,81.597,0.5]
[1773009570783,12.24754742,81.649,81.598,42.89320816]
[1773009570982,12.24754742,81.649,81.6,0.5]
[1773009571296,12.34225908,81.63,81.6,0.5]
[1773009572484,12.25054821,81.629,81.601,12.25475178]
[1773009572880,42.87691874,81.629,81.58,0.5]
[1773009573089,42.87691874,81.629,81.581,0.5]
[1773009573595,12.24920283,81.638,81.582,0.5]
[1773009573778,12.24634752,81.657,81.582,0.5]
[1773009573980,42.86221633,81.657,81.582,0.5]
[1773009574181,12.24634752,81.657,81.582,0.5]
[1773009574500,12.24634752,81.657,81.581,0.28432314]
[1773009574501,12.24634752,81.657,81.59,0.78432314]
[1773009574694,12.24634752,81.657,81.591,0.5]
[1773009576311,12.24170012,81.688,81.595,3.69383402]
[1773009576612,12.24170012,81.688,81.622,0.5]
[1773009577804,12.24170012,81.688,81.625,0.5]
[1773009578301,7.51244166,81.757,81.629,4.19383402]
[1773009578608,12.34225908,81.74,81.65,3.69383402]
[1773009578797,12.34225908,81.74,81.661,0.5]
[1773009580107,12.34225908,81.74,81.665,0.5]
[1773009580305,12.34225908,81.74,81.67,0.5]
[1773009580809,12.34225908,81.74,81.673,0.5]
[1773009580810,12.23406207,81.739,81.673,0.5]
[1773009580991,42.81921725,81.739,81.673,0.5]
[1773009584010,42.81921725,81.739,81.635,30.62386224]
[1773009584011,12.34225908,81.68,81.635,30.62386224]
[1773009584209,0.14216157,81.716,81.619,0.5]
[1773009584395,12.34225908,81.66,81.619,0.5]
[1773009585385,12.34225908,81.65,81.584,0.5]
[1773009585586,0.28432314,81.687,81.586,0.5]
[1773009585587,12.34225908,81.64,81.586,0.5]
[1773009585887,12.24604758,81.659,81.59,3.69383402]
[1773009586088,12.34225908,81.65,81.592,0.5]
[1773009586284,42.86116655,81.659,81.592,0.5]
[1773009586609,12.24604758,81.659,81.592,0.5]
[1773009586817,12.34225908,81.64,81.592,0.5]
[1773009586989,42.86116655,81.659,81.592,0.5]
[1773009586990,12.34225908,81.65,81.592,0.5]
[1773009587887,0.28432314,81.673,81.595,0.5]
[1773009588212,12.34225908,81.65,81.595,0.5]
[1773009590090,12.34225908,81.65,81.597,0.5]
[1773009590691,12.24754742,81.649,81.597,0.5]
[1773009592393,12.24604758,81.659,81.6,0.5]
[1773009593901,12.34622565,81.66,81.6,0.5]
[1773009594818,12.34622565,81.64,81.601,12.25475178]